{"text_format":"1","workbook":"xlsx","n_sheets":47,"sheets":["About","MV>>","Policy Info - MV","Keys - MV","Profitability Level - MV","Group Summary - MV","MC>>","Policy Info - MC","Keys - MC","Profitability Level - MC","Group Summary - MC","List","FI>>","Policy Info - FI","Keys - FI","Profitability Level - FI","Group Summary - FI","AH>>","Policy Info - AH","Keys - AH","Profitability Level - AH","Group Summary - AH","MR>>","Policy Info - MR","Keys - MR","Profitability Level - MR","Group Summary - MR","PL>>","Policy Info - PL","Keys - PL","Profitability Level - PL","Group Summary - PL","EN>>","Policy Info - EN","Keys - EN","Profitability Level - EN","Group Summary - EN","MI>>","Policy Info - MI","Keys - MI","Profitability Level - MI","Group Summary - MI","Template>>","Policy Info Template","Keys Template","Profitability Level Template","Current Path"],"not_rendered":{"charts":0,"images":10,"macros":1,"external_links":1,"defined_names":23,"comments":27,"pivot_tables":8},"unopened":[],"bounds":{"document_bytes":16777216,"sheet_cells":100000,"rows_first":2000,"rows_last":500,"rows_between":2000,"halvings":0,"cell_chars":16384,"cell_head_chars":4096},"cells_cut":0,"cells_raw":0,"read":"whole","date_system":"1900"}

{"sheet":"About","index":0,"n_rows":24,"n_cols":5,"rows_kept":24,"cut":false,"hidden":false,"merged":[[0,0,0,3],[7,0,7,3],[17,0,17,3]]}
["เกี่ยวกับโปรแกรม"]
[1,"โปรแกรมนี้จัดทำโดยสำนักงานอัตราเบี้ยประกันวินาศภัย โดยมีจุดประสงค์เพื่อให้เสริมสร้างความเข้าใจให้กับบุคลากรของบริษัทสมาชิกของสมาคมประกันวินาศภัยไทย เกี่ยวกับการจัดกลุ่มกรมธรรม์ประกันภัย"]
[null,"เพื่อเป็นพื้นฐานในการประเมินมูลค่าทางบัญชี ตามมาตรฐานบัญชี IFRS17 "]
[2,"ตัวอย่างปัจจัยที่แสดงในโปรแกรมนี้เป็นเพียงตัวอย่างปัจจัยในการจัดกลุ่มกรมธรรม์เท่านั้น บริษัทสามารถเลือกใช้ปัจจัยอื่นๆ ซึ่งบริษัทเห็นว่าสามารถจำแนกกรมธรรม์ที่มีความเสี่ยงและการบริหารที่ต่างกันออกจากกันได้"]
[3,"บริษัทสามารถเลือกเกณฑ์ในการแบ่งกลุ่มสภาพกำไรของผลิตภัณฑ์ประกันภัย ตามความเสี่ยงของกลุ่มผลิตภัณฑ์ของบริษัท"]
[null,null,null,null," "]
[]
["วิธีการใช้งาน"]
[1,"เปิดการใช้งาน Macro ของไฟล์ Excel นี้"]
[2,"ในแต่ละประเภทของการประกันภัย (Line of Business) จะประกอบไปด้วย 4 แท็บ ดังนี้"]
[null,"   - แท็บ Policy Info เพื่อกรอกข้อมูลกรมธรรม์ (ท่านควรกรอกข้อมูลให้ครบทุกช่อง ยกเว้นช่องสีเทา) แล้วกดปุ่มด้านขวาบนของตารางเพื่อจัดกลุ่มกรมธรรม์เพื่อเตรียมเข้าสู่กระบวนการประเมินมูลค่าทางบัญชี"]
[null,"   - แท็บ Keys เพื่อระบุปัจจัยที่บริษัทเลือกใช้สำหรับการจัดกลุ่ม โดยท่านสามารถเพิ่ม/ลด จำนวนปัจจัยและตัวเลือกในแต่ละปัจจัยได้ตามที่ต้องการ แล้วกดปุ่มอัพเดทเพื่อให้รายการปัจจัยแสดงในหน้า Policy Info"]
[null,"   - แท็บ Profitability Level เพื่อจัดกลุ่มสภาพกำไรของกรมธรรม์ตามช่วง Combined Ratio ที่คาดหวังของผลิตภัณฑ์ประกันภัยประเภทนั้นๆ โดยท่านสามารถปรับช่วง Combined Ratio ให้เหมาะสมกับระดับความเสี่ยงของ Portfolio"]
[null,"   - แท็บ Group Summary จะแสดงผลสรุปการจัดกลุ่มกรมธรรม์ หลังจากกดปุ่มจัดกลุ่มในหน้า Policy Info"]
[3,"ท่านสามารถเสนอแนะข้อแก้ไขปรับปรุงต่อตัวโปรแกรม หรือ รายงานข้อบกพร่องของโปรแกรมได้ทางอีเมล: thanakrit@tgia.org"]
[]
[]
["การอัพเดท"]
[null,"เวอร์ชั่น","วันที่เผยแพร่","วันสิ้นสุดการใช้งาน","รายละเอียด"]
[null,"1.0.0","2562-07-23","-","สร้างโปรแกรมที่จัดกลุ่มกรมธรรม์ประกันภัยเพื่อเป็นพื้นฐานในการประเมินมูลค่าทางบัญชี ตามมาตรฐานบัญชี IFRS17 สำหรับประกันภัยรถยนต์"]
[null,null,null,null,"ประกันอัคคีภัยและความเสี่ยงภัยทรัพย์สิน ประกันภัยอุบัติเหตุและสุขภาพ"]
[null,"1.0.1","2562-07-23","-","แก้ไข Error จากการอัพเดทรายการในหน้า Keys"]
[null,"1.1.0","2562-08-13","-","เพิ่มประเภทประกันภัยอื่น และเพิ่มหน้าสรุปกลุ่มกรมธรรม์หลังจากกดปุ่มจัดกลุ่ม"]
[null,"1.2.0","2562-08-22","-","เพิ่มช่องให้กรอกค่าปรับปรุงความเสี่ยง เพื่อร่วมใช้พิจารณาสภาพกำไรของกรมธรรม์"]

{"sheet":"MV>>","index":1,"n_rows":0,"n_cols":0,"rows_kept":0,"cut":false,"hidden":false,"merged":[]}

{"sheet":"Policy Info - MV","index":2,"n_rows":40,"n_cols":23,"rows_kept":40,"cut":false,"hidden":false,"merged":[]}
[null,"รายการกรมธรรม์ประกันภัยรถยนต์ภาคสมัครใจ"]
["ปัจจัย","เลขที่กรมธรรม์","ประเภทของการประกันภัย","รหัสรถยนต์","ชั้นของการประกันภัย","ยี่ห้อรถยนต์","อายุรถยนต์","ประเภทการซ่อม","ประกันกลุ่ม","ช่องทางการขาย","วันออกกรมธรรม์","วันกำหนดได้รับเบี้ย","วันเริ่มคุ้มครอง","วันที่ได้รับเบี้ยจริง","เบี้ยประกันภัย","ต้นทุนความเสียหาย","ค่าปรับปรุงความเสี่ยง","ค่านายหน้า","ค่าใช้จ่ายอื่น","สภาพกำไร","วันที่เริ่มรับรู้กรมธรรม์","ปีที่เริ่มรับรู้กรมธรรม์","กลุ่มสำหรับ IFRS17"]
["ใช้เป็นปัจจัยในการแบ่งกลุ่มหรือไม่","ไม่","ใช่","ใช่","ใช่","ไม่","ไม่","ใช่","ไม่","ใช่","ไม่","ไม่","ไม่","ไม่","ไม่","ไม่","ไม่","ไม่","ไม่","ใช่","ไม่","ใช่","ไม่"]
[null,"P00001","ประกันภัยรถยนต์ภาคสมัครใจ",110,"ชั้น 1  ","MERCEDES-BENZ","2 ปี","ซ่อมห้าง","Non-fleet","ตัวแทน","2018-02-18","2018-02-20","2018-02-20","2018-02-19",50000,35000,{"$f":"P4*5%","v":1750},7500,7000]
[null,"P00002","ประกันภัยรถยนต์ภาคสมัครใจ",110,"ชั้น 1  ","TOYOTA","5 ปี","ซ่อมห้าง","Non-fleet","บริษัทนายหน้า A","2017-12-23","-","2018-01-10","-",15000,6200,310,2000,2000]
[null,"P00003","ประกันภัยรถยนต์ภาคสมัครใจ",120,"ชั้น 1  ","TOYOTA","8 ปี","ซ่อมอู่","Non-fleet","บริษัทนายหน้า C","2018-01-02","-","2018-01-13","-",14000,7800,390,2000,3000]
[null,"P00004","ประกันภัยรถยนต์ภาคสมัครใจ",120,"ชั้น 1  ","TOYOTA","6 ปี","ซ่อมอู่","Non-fleet","บริษัทนายหน้า C","2017-12-16","-","2018-01-03","-",14000,7800,390,2000,3000]
[null,"P00005","ประกันภัยรถยนต์ภาคสมัครใจ",120,"ชั้น 1  ","TOYOTA","7 ปี","ซ่อมอู่","Non-fleet","บริษัทนายหน้า C","2017-12-30","-","2017-12-30","-",14000,7800,390,2000,3000]
[null,"P00006","ประกันภัยรถยนต์ภาคสมัครใจ",110,"ชั้น 2  ","TOYOTA","5 ปี","ซ่อมอู่","Non-fleet","บริษัทนายหน้า A","2018-01-03","-","2018-01-11","-",6000,3500,175,1200,1000]
[null,"P00007","ประกันภัยรถยนต์ภาคสมัครใจ",120,"ชั้น 1  ","TOYOTA","5 ปี","ซ่อมอู่","Non-fleet","บริษัทนายหน้า A","2017-12-19","-","2018-01-09","-",14000,7800,390,2000,3000]
[null,"P00008","ประกันภัยรถยนต์ภาคสมัครใจ",110,"ชั้น 1  ","TOYOTA","5 ปี","ซ่อมห้าง","Non-fleet","บริษัทนายหน้า A","2017-12-27","-","2018-01-10","-",15000,9000,450,2000,2000]
[null,"P00009","ประกันภัยรถยนต์ภาคสมัครใจ",120,"ชั้น 1  ","TOYOTA","5 ปี","ซ่อมอู่","Non-fleet","บริษัทนายหน้า C","2018-01-05","-","2018-01-06","-",14000,7800,390,2000,3000]
[null,"P00010","ประกันภัยรถยนต์ภาคสมัครใจ",110,"ชั้น 1  ","TOYOTA","5 ปี","ซ่อมอู่","Non-fleet","บริษัทนายหน้า A","2017-12-30","-","2018-01-03","-",13000,8500,425,2000,2000]
[null,"P00011","ประกันภัยรถยนต์ภาคสมัครใจ",110,"ชั้น 1  ","CHERY","5 ปี","ซ่อมอู่","Non-fleet","บริษัทนายหน้า A","2017-12-20","-","2018-01-07","-",13000,7400,370,2000,2000]
[null,"P00012","ประกันภัยรถยนต์ภาคสมัครใจ",110,"ชั้น 1  ","TOYOTA","5 ปี","ซ่อมอู่","Non-fleet","บริษัทนายหน้า A","2017-12-30","-","2018-01-19","-",13000,8500,425,2000,2000]
[null,"P00013","ประกันภัยรถยนต์ภาคสมัครใจ",110,"ชั้น 1  ","TOYOTA","5 ปี","ซ่อมอู่","Non-fleet","บริษัทนายหน้า A","2017-12-24","-","2018-01-02","-",13000,8700,435,2000,2000]
[null,"P00014","ประกันภัยรถยนต์ภาคสมัครใจ",110,"ชั้น 1  ","CHERY","5 ปี","ซ่อมอู่","Non-fleet","บริษัทนายหน้า A","2017-12-17","-","2018-01-06","-",13000,7400,370,2000,2000]
[null,"P00015","ประกันภัยรถยนต์ภาคสมัครใจ",120,"ชั้น 1  ","TOYOTA","5 ปี","ซ่อมอู่","Non-fleet","บริษัทนายหน้า A","2017-12-30","-","2018-01-03","-",14000,7800,390,2000,3000]
[null,"P00016","ประกันภัยรถยนต์ภาคสมัครใจ",120,"ชั้น 1  ","TOYOTA","5 ปี","ซ่อมอู่","Non-fleet","บริษัทนายหน้า A","2017-12-25","-","2018-01-16","-",14000,7800,390,2000,3000]
[null,"P00017","ประกันภัยรถยนต์ภาคสมัครใจ",110,"ชั้น 1  ","CHERY","5 ปี","ซ่อมอู่","Non-fleet","บริษัทนายหน้า A","2018-01-03","-","2018-01-13","-",13000,7400,370,2000,2000]
[null,"P00018","ประกันภัยรถยนต์ภาคสมัครใจ",120,"ชั้น 1  ","TOYOTA","5 ปี","ซ่อมอู่","Non-fleet","บริษัทนายหน้า B","2017-12-22","-","2018-01-18","-",14000,7800,390,2000,3000]
[null,"P00019","ประกันภัยรถยนต์ภาคสมัครใจ",120,"ชั้น 1  ","TOYOTA","5 ปี","ซ่อมอู่","Non-fleet","บริษัทนายหน้า A","2017-12-20","-","2017-12-31","-",14000,7800,390,2000,3000]
[null,"P00020","ประกันภัยรถยนต์ภาคสมัครใจ",110,"ชั้น 1  ","NISSAN","5 ปี","ซ่อมอู่","Non-fleet","บริษัทนายหน้า A","2017-12-21","-","2018-01-09","-",13000,9100,455,2000,2000]
[null,"P00021","ประกันภัยรถยนต์ภาคสมัครใจ",110,"ชั้น 1  ","HONDA","3 ปี","ซ่อมห้าง","Non-fleet","บริษัทนายหน้า A","2017-12-18","-","2018-01-02","-",15000,5600,280,2000,2000]
[null,"P00022","ประกันภัยรถยนต์ภาคสมัครใจ",120,"ชั้น 1  ","TOYOTA","5 ปี","ซ่อมอู่","Non-fleet","บริษัทนายหน้า B","2017-12-22","-","2018-01-19","-",14000,7800,390,2000,3000]
[null,"P00023","ประกันภัยรถยนต์ภาคสมัครใจ",110,"ชั้น 1  ","NISSAN","5 ปี","ซ่อมอู่","Non-fleet","บริษัทนายหน้า A","2018-01-03","-","2018-01-16","-",13000,9100,455,2000,2000]
[null,"P00024","ประกันภัยรถยนต์ภาคสมัครใจ",120,"ชั้น 1  ","TOYOTA","5 ปี","ซ่อมอู่","Non-fleet","บริษัทนายหน้า C","2017-12-16","-","2018-01-16","-",14000,7800,390,2000,3000]
[null,"P00025","ประกันภัยรถยนต์ภาคสมัครใจ",120,"ชั้น 1  ","TOYOTA","5 ปี","ซ่อมอู่","Non-fleet","บริษัทนายหน้า B","2017-12-28","-","2018-01-12","-",14000,7800,390,2000,3000]
[null,"P00026","ประกันภัยรถยนต์ภาคสมัครใจ",120,"ชั้น 1  ","TOYOTA","5 ปี","ซ่อมอู่","Non-fleet","บริษัทนายหน้า A","2017-12-18","-","2018-01-18","-",14000,7800,390,2000,3000]
[null,"P00027","ประกันภัยรถยนต์ภาคสมัครใจ",120,"ชั้น 1  ","TOYOTA","5 ปี","ซ่อมอู่","Non-fleet","บริษัทนายหน้า B","2017-12-28","-","2018-01-05","-",14000,7800,390,2000,3000]
[null,"P00028","ประกันภัยรถยนต์ภาคสมัครใจ",110,"ชั้น 1  ","FORD","2 ปี","ซ่อมห้าง","Non-fleet","บริษัทนายหน้า A","2017-12-31","-","2017-12-31","-",15000,10600,530,2000,2000]
[null,"P00029","ประกันภัยรถยนต์ภาคสมัครใจ",110,"ชั้น 1  ","HONDA","4 ปี","ซ่อมห้าง","Non-fleet","บริษัทนายหน้า A","2017-12-19","-","2018-01-05","-",15000,6400,320,2000,2000]
[null,"P00030","ประกันภัยรถยนต์ภาคสมัครใจ",110,"ชั้น 1  ","HONDA","2 ปี","ซ่อมห้าง","Non-fleet","บริษัทนายหน้า A","2017-12-27","-","2018-01-13","-",15000,9500,475,2000,2000]
[null,"P00031","ประกันภัยรถยนต์ภาคสมัครใจ",120,"ชั้น 1  ","TOYOTA","5 ปี","ซ่อมอู่","Non-fleet","บริษัทนายหน้า A","2017-12-19","-","2018-01-03","-",14000,7800,390,2000,3000]
[null,"P00032","ประกันภัยรถยนต์ภาคสมัครใจ",110,"ชั้น 1  ","TOYOTA","5 ปี","ซ่อมห้าง","Non-fleet","บริษัทนายหน้า A","2017-12-23","-","2017-12-30","-",15000,8500,425,2000,2000]
[null,"P00033","ประกันภัยรถยนต์ภาคสมัครใจ",120,"ชั้น 1  ","TOYOTA","5 ปี","ซ่อมอู่","Non-fleet","บริษัทนายหน้า C","2017-12-27","-","2018-01-04","-",14000,7800,390,2000,3000]
[null,"P00034","ประกันภัยรถยนต์ภาคสมัครใจ",120,"ชั้น 1  ","TOYOTA","5 ปี","ซ่อมอู่","Non-fleet","บริษัทนายหน้า B","2017-12-26","-","2018-01-09","-",14000,7800,390,2000,3000]
[null,"P00035","ประกันภัยรถยนต์ภาคสมัครใจ",120,"ชั้น 1  ","TOYOTA","5 ปี","ซ่อมอู่","Non-fleet","บริษัทนายหน้า A","2017-12-31","-","2018-01-01","-",14000,7800,390,2000,3000]
[null,"P00036","ประกันภัยรถยนต์ภาคสมัครใจ",320,"ชั้น 2+","TOYOTA","5 ปี","ซ่อมอู่","Non-fleet","บริษัทนายหน้า B","2017-12-26","-","2018-01-09","-",14000,8700,435,2000,3000]
[null,"P00037","ประกันภัยรถยนต์ภาคสมัครใจ",320,"ชั้น 2  ","TOYOTA","5 ปี","ซ่อมอู่","Non-fleet","บริษัทนายหน้า A","2017-12-31","-","2018-01-01","-",14000,8700,435,2000,3000]

{"sheet":"Keys - MV","index":3,"n_rows":66,"n_cols":9,"rows_kept":66,"cut":false,"hidden":false,"merged":[[0,0,0,3]]}
["รายการปัจจัยของกรมธรรม์ประกันภัยรถยนต์ภาคสมัครใจ"]
["ปัจจัย","ประเภทของการประกันภัย","รหัสรถยนต์","ชั้นของการประกันภัย","ยี่ห้อรถยนต์","อายุรถยนต์","ประเภทการซ่อม","ประกันกลุ่ม","ช่องทางการขาย"]
["ใช้เป็นปัจจัยในการแบ่งกลุ่มหรือไม่","ใช่","ใช่","ใช่","ไม่","ไม่","ใช่","ใช่","ใช่"]
["ตัวเลือกในแต่ละปัจจัย","ประกันภัยรถยนต์ภาคสมัครใจ",110,"ชั้น 1  ","ALFA ROMEO","1 ปี","ซ่อมห้าง","Non-fleet","ตัวแทน"]
[null,null,120,"ชั้น 2+","ASTON MARTIN","2 ปี","ซ่อมอู่","Fleet บริษัท A","บริษัทนายหน้า A"]
[null,null,210,"ชั้น 2  ","AUDI","3 ปี",null,"Fleet บริษัท B","บริษัทนายหน้า B"]
[null,null,220,"ชั้น 3+","BENTLEY","4 ปี",null,"Fleet บุคคล","บริษัทนายหน้า C"]
[null,null,230,"ชั้น 3  ","BMW","5 ปี",null,null,"ธนาคาร"]
[null,null,320,"ชั้น 4  ","CHERY","6 ปี",null,null,"รับตรง"]
[null,null,340,null,"CHEVROLET","7 ปี"]
[null,null,420,null,"CHRYSLER","8 ปี"]
[null,null,520,null,"CITROEN","9 ปี"]
[null,null,540,null,"DAEWOO","10 ปี"]
[null,null,610,null,"DAIHATSU","มากกว่า 10 ปี"]
[null,null,620,null,"DFM"]
[null,null,630,null,"DFSK"]
[null,null,730,null,"FERRARI"]
[null,null,801,null,"FIAT"]
[null,null,802,null,"FORD"]
[null,null,803,null,"FOTON"]
[null,null,804,null,"HOLDEN"]
[null,null,805,null,"HONDA"]
[null,null,806,null,"HUMMER"]
[null,null,null,null,"HYUNDAI"]
[null,null,null,null,"ISUZU"]
[null,null,null,null,"JAGUAR"]
[null,null,null,null,"JEEP"]
[null,null,null,null,"JINBEI"]
[null,null,null,null,"KIA"]
[null,null,null,null,"LAMBORGHINI"]
[null,null,null,null,"LAND ROVER"]
[null,null,null,null,"LEXUS"]
[null,null,null,null,"LOTUS"]
[null,null,null,null,"MASERATI"]
[null,null,null,null,"MAXUS"]
[null,null,null,null,"MAZDA"]
[null,null,null,null,"MCLAREN"]
[null,null,null,null,"MERCEDES-BENZ"]
[null,null,null,null,"MG"]
[null,null,null,null,"MINI"]
[null,null,null,null,"MITSUBISHI"]
[null,null,null,null,"MITSUOKA"]
[null,null,null,null,"NAZA"]
[null,null,null,null,"NISSAN"]
[null,null,null,null,"OPEL"]
[null,null,null,null,"PEUGEOT"]
[null,null,null,null,"POLARSUN"]
[null,null,null,null,"PORSCHE"]
[null,null,null,null,"PROTON"]
[null,null,null,null,"RELY"]
[null,null,null,null,"RENAULT"]
[null,null,null,null,"ROLLS-ROYCE"]
[null,null,null,null,"ROVER"]
[null,null,null,null,"SAAB"]
[null,null,null,null,"SEAT"]
[null,null,null,null,"SKODA"]
[null,null,null,null,"SMART"]
[null,null,null,null,"SPYKER"]
[null,null,null,null,"SSANGYONG"]
[null,null,null,null,"SUBARU"]
[null,null,null,null,"SUZUKI"]
[null,null,null,null,"TATA"]
[null,null,null,null,"TOYOTA"]
[null,null,null,null,"TR"]
[null,null,null,null,"VOLKSWAGEN"]
[null,null,null,null,"VOLVO"]

{"sheet":"Profitability Level - MV","index":4,"n_rows":16,"n_cols":4,"rows_kept":16,"cut":false,"hidden":false,"merged":[[1,0,1,1],[1,2,2,2]]}
["เกณฑ์สภาพกำไรของประกันภัยรถยนต์ภาคสมัครใจ"]
["Expected Combined Ratio ",null,"สภาพกำไร"]
["ตั้งแต่ (≤)","ถึง (<)"]
[0,{"$f":"A5","v":0.9},"Profitable with no significant risk to be onerous"]
[0.9,{"$f":"A6","v":1},"Remaining Profitable"]
[1,9.99,"Onerous"]
[]
[]
[]
[]
[null,null," "]
[]
[]
[]
[]
[null,null,null," "]

{"sheet":"Group Summary - MV","index":5,"n_rows":5,"n_cols":12,"rows_kept":5,"cut":false,"hidden":false,"merged":[]}
[]
[]
[null,null,null,null,null,null,null,null,"Values"]
["กลุ่มสำหรับ IFRS17","ประเภทของการประกันภัย","รหัสรถยนต์","ชั้นของการประกันภัย","ประเภทการซ่อม","ช่องทางการขาย","สภาพกำไร","ปีที่เริ่มรับรู้กรมธรรม์","จำนวนกรมธรรม์","เบี้ยรวม","Loss Ratio","Combined Ratio"]
["Grand Total",null,null,null,null,null,null,null,null,null,{"$error":"#DIV/0!"},{"$error":"#DIV/0!"}]

{"sheet":"MC>>","index":6,"n_rows":0,"n_cols":0,"rows_kept":0,"cut":false,"hidden":false,"merged":[]}

{"sheet":"Policy Info - MC","index":7,"n_rows":44,"n_cols":18,"rows_kept":44,"cut":false,"hidden":false,"merged":[]}
[null,"รายการกรมธรรม์ประกันภัยรถยนต์ภาคบังคับ"]
["ปัจจัย","เลขที่กรมธรรม์","ประเภทของการประกันภัย","ประเภทรถยนต์","ช่องทางการขาย","วันออกกรมธรรม์","วันกำหนดได้รับเบี้ย","วันเริ่มคุ้มครอง","วันที่ได้รับเบี้ยจริง","เบี้ยประกันภัย","ต้นทุนความเสียหาย","ค่าปรับปรุงความเสี่ยง","ค่านายหน้า","ค่าใช้จ่ายอื่น","สภาพกำไร","วันที่เริ่มรับรู้กรมธรรม์","ปีที่เริ่มรับรู้กรมธรรม์","กลุ่มสำหรับ IFRS17"]
["ใช้เป็นปัจจัยในการแบ่งกลุ่มหรือไม่","ไม่","ใช่","ใช่","ใช่","ไม่","ไม่","ไม่","ไม่","ไม่","ไม่","ไม่","ไม่","ไม่","ใช่","ไม่","ใช่","ไม่"]
[null,"P0001","ประกันภัยรถยนต์ภาคบังคับ","รถยนต์นั่งไม่เกิน 7 คน","ตัวแทน","2017-12-30","-","2018-01-01","-",600,{"$f":"IF(D4=\"รถจักรยานยนต์\",120%,45%)*J4","v":270},{"$f":"K4*3%","v":8.1},{"$f":"IF(D4=\"รถจักรยานยนต์\",5%,30%)*J4","v":180},{"$f":"20%*J4","v":120}]
[null,"P0002","ประกันภัยรถยนต์ภาคบังคับ","รถยนต์นั่งไม่เกิน 7 คน","ตัวแทน","2017-12-30","-","2018-01-01","-",600,270,8.1,180,120]
[null,"P0003","ประกันภัยรถยนต์ภาคบังคับ","รถยนต์นั่งไม่เกิน 7 คน","บริษัทนายหน้า A","2017-12-30","-","2018-01-01","-",600,270,8.1,180,120]
[null,"P0004","ประกันภัยรถยนต์ภาคบังคับ","รถยนต์นั่งไม่เกิน 7 คน","ตัวแทน","2017-12-30","-","2018-01-01","-",600,270,8.1,180,120]
[null,"P0005","ประกันภัยรถยนต์ภาคบังคับ","รถยนต์นั่งไม่เกิน 7 คน","บริษัทนายหน้า C","2017-12-30","-","2018-01-01","-",600,270,8.1,180,120]
[null,"P0006","ประกันภัยรถยนต์ภาคบังคับ","รถยนต์นั่งไม่เกิน 7 คน","รับตรง","2017-12-30","-","2018-01-01","-",600,270,8.1,180,120]
[null,"P0007","ประกันภัยรถยนต์ภาคบังคับ","รถยนต์นั่งไม่เกิน 7 คน","บริษัทนายหน้า B","2017-12-30","-","2018-01-01","-",600,270,8.1,180,120]
[null,"P0008","ประกันภัยรถยนต์ภาคบังคับ","รถยนต์นั่งไม่เกิน 7 คน","ตัวแทน","2017-12-30","-","2018-01-01","-",600,270,8.1,180,120]
[null,"P0009","ประกันภัยรถยนต์ภาคบังคับ","รถยนต์นั่งไม่เกิน 7 คน","บริษัทนายหน้า A","2017-12-30","-","2018-01-01","-",600,270,8.1,180,120]
[null,"P0010","ประกันภัยรถยนต์ภาคบังคับ","รถยนต์นั่งไม่เกิน 7 คน","ตัวแทน","2017-12-30","-","2018-01-01","-",600,270,8.1,180,120]
[null,"P0011","ประกันภัยรถยนต์ภาคบังคับ","รถยนต์โดยสารเกิน 7 คน","บริษัทนายหน้า C","2017-12-30","-","2018-01-01","-",600,270,8.1,180,120]
[null,"P0012","ประกันภัยรถยนต์ภาคบังคับ","รถยนต์โดยสารเกิน 7 คน","รับตรง","2017-12-30","-","2018-01-01","-",600,270,8.1,180,120]
[null,"P0013","ประกันภัยรถยนต์ภาคบังคับ","รถยนต์โดยสารเกิน 7 คน","บริษัทนายหน้า A","2017-12-30","-","2018-01-01","-",600,270,8.1,180,120]
[null,"P0014","ประกันภัยรถยนต์ภาคบังคับ","รถยนต์โดยสารเกิน 7 คน","บริษัทนายหน้า A","2017-12-30","-","2018-01-01","-",600,270,8.1,180,120]
[null,"P0015","ประกันภัยรถยนต์ภาคบังคับ","รถยนต์โดยสารเกิน 7 คน","บริษัทนายหน้า A","2017-12-30","-","2018-01-01","-",600,270,8.1,180,120]
[null,"P0016","ประกันภัยรถยนต์ภาคบังคับ","รถจักรยานยนต์","ตัวแทน","2017-12-30","-","2018-01-01","-",300,360,10.799999999999999,15,60]
[null,"P0017","ประกันภัยรถยนต์ภาคบังคับ","รถจักรยานยนต์","ตัวแทน","2017-12-30","-","2018-01-01","-",300,360,10.799999999999999,15,60]
[null,"P0018","ประกันภัยรถยนต์ภาคบังคับ","รถจักรยานยนต์","บริษัทนายหน้า C","2017-12-30","-","2018-01-01","-",300,360,10.799999999999999,15,60]
[null,"P0019","ประกันภัยรถยนต์ภาคบังคับ","รถจักรยานยนต์","รับตรง","2017-12-30","-","2018-01-01","-",300,360,10.799999999999999,15,60]
[null,"P0020","ประกันภัยรถยนต์ภาคบังคับ","รถจักรยานยนต์","บริษัทนายหน้า B","2017-12-30","-","2018-01-01","-",300,360,10.799999999999999,15,60]
[null,"P0021","ประกันภัยรถยนต์ภาคบังคับ","รถจักรยานยนต์","ตัวแทน","2017-12-30","-","2018-01-01","-",300,360,10.799999999999999,15,60]
[null,"P0022","ประกันภัยรถยนต์ภาคบังคับ","รถจักรยานยนต์","บริษัทนายหน้า A","2017-12-30","-","2018-01-01","-",300,360,10.799999999999999,15,60]
[null,"P0023","ประกันภัยรถยนต์ภาคบังคับ","รถจักรยานยนต์","ตัวแทน","2017-12-30","-","2018-01-01","-",300,360,10.799999999999999,15,60]
[null,"P0024","ประกันภัยรถยนต์ภาคบังคับ","รถจักรยานยนต์","บริษัทนายหน้า C","2017-12-30","-","2018-01-01","-",300,360,10.799999999999999,15,60]
[null,"P0025","ประกันภัยรถยนต์ภาคบังคับ","รถจักรยานยนต์","รับตรง","2017-12-30","-","2018-01-01","-",300,360,10.799999999999999,15,60]
[null,"P0026","ประกันภัยรถยนต์ภาคบังคับ","รถจักรยานยนต์","บริษัทนายหน้า B","2017-12-30","-","2018-01-01","-",300,360,10.799999999999999,15,60]
[null,"P0027","ประกันภัยรถยนต์ภาคบังคับ","รถจักรยานยนต์","ตัวแทน","2017-12-30","-","2018-01-01","-",300,360,10.799999999999999,15,60]
[null,"P0028","ประกันภัยรถยนต์ภาคบังคับ","รถจักรยานยนต์","บริษัทนายหน้า A","2017-12-30","-","2018-01-01","-",300,360,10.799999999999999,15,60]
[null,"P0029","ประกันภัยรถยนต์ภาคบังคับ","รถยนต์บรรทุก","ตัวแทน","2017-12-30","-","2018-01-01","-",900,405,12.15,270,180]
[null,"P0030","ประกันภัยรถยนต์ภาคบังคับ","รถยนต์บรรทุก","บริษัทนายหน้า C","2017-12-30","-","2018-01-01","-",900,405,12.15,270,180]
[null,"P0031","ประกันภัยรถยนต์ภาคบังคับ","รถยนต์บรรทุก","ตัวแทน","2017-12-30","-","2018-01-01","-",900,405,12.15,270,180]
[null,"P0032","ประกันภัยรถยนต์ภาคบังคับ","รถยนต์บรรทุก","ตัวแทน","2017-12-30","-","2018-01-01","-",900,405,12.15,270,180]
[null,"P0033","ประกันภัยรถยนต์ภาคบังคับ","รถยนต์บรรทุก","บริษัทนายหน้า C","2017-12-30","-","2018-01-01","-",900,405,12.15,270,180]
[null,"P0034","ประกันภัยรถยนต์ภาคบังคับ","รถยนต์บรรทุก","รับตรง","2017-12-30","-","2018-01-01","-",900,405,12.15,270,180]
[null,"P0035","ประกันภัยรถยนต์ภาคบังคับ","รถยนต์บรรทุก","บริษัทนายหน้า A","2017-12-30","-","2018-01-01","-",900,405,12.15,270,180]
[null,"P0036","ประกันภัยรถยนต์ภาคบังคับ","รถยนต์บรรทุก","บริษัทนายหน้า A","2017-12-30","-","2018-01-01","-",900,405,12.15,270,180]
[null,"P0037","ประกันภัยรถยนต์ภาคบังคับ","รถยนต์บรรทุก","บริษัทนายหน้า A","2017-12-30","-","2018-01-01","-",900,405,12.15,270,180]
[null,"P0038","ประกันภัยรถยนต์ภาคบังคับ","รถยนต์บรรทุก","ตัวแทน","2017-12-30","-","2018-01-01","-",900,405,12.15,270,180]
[null,"P0039","ประกันภัยรถยนต์ภาคบังคับ","รถยนต์บรรทุก","ตัวแทน","2017-12-30","-","2018-01-01","-",900,405,12.15,270,180]
[null,"P0040","ประกันภัยรถยนต์ภาคบังคับ","รถยนต์บรรทุก","ตัวแทน","2017-12-30","-","2018-01-01","-",900,405,12.15,270,180]
[null,"P0041","ประกันภัยรถยนต์ภาคบังคับ","รถยนต์บรรทุก","บริษัทนายหน้า C","2017-12-30","-","2018-01-01","-",900,405,12.15,270,180]

{"sheet":"Keys - MC","index":8,"n_rows":15,"n_cols":4,"rows_kept":15,"cut":false,"hidden":false,"merged":[[0,0,0,3]]}
["รายการปัจจัยของกรมธรรม์ประกันภัยรถยนต์ภาคบังคับ"]
["ปัจจัย","ประเภทของการประกันภัย","ประเภทรถยนต์","ช่องทางการขาย"]
["ใช้เป็นปัจจัยในการแบ่งกลุ่มหรือไม่","ใช่","ใช่","ใช่"]
["ตัวเลือกในแต่ละปัจจัย","ประกันภัยรถยนต์ภาคบังคับ","รถยนต์นั่งไม่เกิน 7 คน","ตัวแทน"]
[null,null,"รถยนต์โดยสารเกิน 7 คน","บริษัทนายหน้า A"]
[null,null,"รถจักรยานยนต์","บริษัทนายหน้า B"]
[null,null,"รถยนต์บรรทุก","บริษัทนายหน้า C"]
[null,null,"รถยนต์บรรทุกน้ำมันเชื้อเพลิง แก๊ส หรือกรด","ธนาคาร"]
[null,null,"หัวรถลากจูง","รับตรง"]
[null,null,"รถพ่วง"]
[null,null,"รถสามล้อเครื่อง"]
[null,null,"รถสกายแลป"]
[null,null,"รถยนต์ป้ายแดง"]
[null,null,"รถยนต์ที่ใช้ในการเกษตร"]
[null,null,"รถยนต์ประเภทอื่นๆ"]

{"sheet":"Profitability Level - MC","index":9,"n_rows":16,"n_cols":4,"rows_kept":16,"cut":false,"hidden":false,"merged":[[1,0,1,1],[1,2,2,2]]}
["เกณฑ์สภาพกำไรของประกันภัยรถยนต์ภาคบังคับ"]
["Expected Combined Ratio ",null,"สภาพกำไร"]
["ตั้งแต่ (≤)","ถึง (<)"]
[0,{"$f":"A5","v":0.95},"Profitable with no significant risk to be onerous"]
[0.95,{"$f":"A6","v":1},"Remaining Profitable"]
[1,9.99,"Onerous"]
[]
[]
[]
[]
[]
[]
[]
[]
[]
[null,null,null," "]

{"sheet":"Group Summary - MC","index":10,"n_rows":5,"n_cols":10,"rows_kept":5,"cut":false,"hidden":false,"merged":[]}
[]
[]
[null,null,null,null,null,null,"Values"]
["กลุ่มสำหรับ IFRS17","ประเภทของการประกันภัย","ประเภทรถยนต์","ช่องทางการขาย","สภาพกำไร","ปีที่เริ่มรับรู้กรมธรรม์","จำนวนกรมธรรม์","เบี้ยรวม","Loss Ratio","Combined Ratio"]
["Grand Total",null,null,null,null,null,null,null,{"$error":"#DIV/0!"},{"$error":"#DIV/0!"}]

{"sheet":"List","index":11,"n_rows":7,"n_cols":2,"rows_kept":7,"cut":false,"hidden":true,"merged":[]}
["Boolean","LOB"]
["ใช่","MC"]
["ไม่","MV"]
[null,"FI"]
[null,"MR"]
[null,"AH"]
[null,"MI"]

{"sheet":"FI>>","index":12,"n_rows":0,"n_cols":0,"rows_kept":0,"cut":false,"hidden":false,"merged":[]}

{"sheet":"Policy Info - FI","index":13,"n_rows":3,"n_cols":26,"rows_kept":3,"cut":false,"hidden":false,"merged":[]}
[null,"รายการกรมธรรม์ประกันอัคคีภัยและความเสี่ยงภัยทรัพย์สิน"]
["ปัจจัย","เลขที่กรมธรรม์","ประเภทของการประกันภัย","กลุ่มของภัยตัวเอง","รหัสภัยนอก","ชั้นของสิ่งปลูกสร้าง","ภัยโดดเดี่ยว","จังหวัดที่ตั้งทรัพย์สิน","ภาคที่ตั้งทรัพย์สิน","ช่วงเวลาความคุ้มครอง","ระดับทุนประกันภัย","ความคุ้มครองภัยธรรมชาติ","ช่องทางการขาย","วันออกกรมธรรม์","วันกำหนดได้รับเบี้ย","วันเริ่มคุ้มครอง","วันที่ได้รับเบี้ยจริง","เบี้ยประกันภัย","ต้นทุนความเสียหาย","ค่าปรับปรุงความเสี่ยง","ค่านายหน้า","ค่าใช้จ่ายอื่น","สภาพกำไร","วันที่เริ่มรับรู้กรมธรรม์","ปีที่เริ่มรับรู้กรมธรรม์","กลุ่มสำหรับ IFRS17"]
["ใช้เป็นปัจจัยในการแบ่งกลุ่มหรือไม่","ไม่","ใช่","ใช่","ไม่","ใช่","ใช่","ไม่","ใช่","ใช่","ใช่","ใช่","ใช่","ไม่","ไม่","ไม่","ไม่","ไม่","ไม่","ไม่","ไม่","ไม่","ใช่","ไม่","ใช่","ไม่"]

{"sheet":"Keys - FI","index":14,"n_rows":80,"n_cols":12,"rows_kept":80,"cut":false,"hidden":false,"merged":[[0,0,0,3]]}
["รายการปัจจัยของกรมธรรม์ประกันอัคคีภัยและความเสี่ยงภัยทรัพย์สิน"]
["ปัจจัย","ประเภทของการประกันภัย","กลุ่มของภัยตัวเอง","รหัสภัยนอก","ชั้นของสิ่งปลูกสร้าง","ภัยโดดเดี่ยว","จังหวัดที่ตั้งทรัพย์สิน","ภาคที่ตั้งทรัพย์สิน","ช่วงเวลาความคุ้มครอง","ระดับทุนประกันภัย","ความคุ้มครองภัยธรรมชาติ","ช่องทางการขาย"]
["ใช้เป็นปัจจัยในการแบ่งกลุ่มหรือไม่","ใช่","ใช่","ไม่","ใช่","ใช่","ไม่","ใช่","ใช่","ใช่","ใช่","ใช่"]
["ตัวเลือกในแต่ละปัจจัย","ประกันอัคคีภัย","ที่อยู่อาศัย (รหัส 1032, 1040, 1074)",8001,"ชั้น 1","ภัยโดดเดี่ยว","กระบี่","ภาคเหนือ","ไม่เกิน 1 ปี","ไม่เกิน 50 ล้านบาท","คุ้มครอง","ตัวแทน"]
[null,"ประกันความเสี่ยงภัยทรัพย์สิน (IAR)","ภัยที่ไม่มีการผลิต (ไม่รวมที่อยู่อาศัย)",8002,"ชั้น 2","ภัยไม่โดดเดี่ยว","กรุงเทพมหานคร","ภาคตะวันออกเฉียงเหนือ","2 - 3 ปี","มากกว่า 50 ล้านบาท","ไม่คุ้มครอง","บริษัทนายหน้า A"]
[null,null,"ภัยที่มีการผลิต วัตถุดิบส่วนใหญ่เป็นพวกกสิกรรม",8801,"ชั้น 3",null,"กาญจนบุรี","ภาคตะวันออก","4 - 10 ปี",null,null,"บริษัทนายหน้า B"]
[null,null,"ภัยที่มีการผลิต วัตถุดิบส่วนใหญ่เป็นพวกสัตว์",8802,null,null,"กาฬสินธุ์","ภาคกลาง","11 - 30 ปี",null,null,"บริษัทนายหน้า C"]
[null,null,"ภัยที่มีการผลิต วัตถุดิบส่วนใหญ่เป็นโลหะ",8803,null,null,"กำแพงเพชร","ภาคตะวันตก",null,null,null,"ธนาคาร"]
[null,null,"ภัยที่มีการผลิต วัตถุดิบส่วนใหญ่เป็นแร่",8810,null,null,"ขอนแก่น","ภาคใต้",null,null,null,"รับตรง"]
[null,null,"ภัยที่มีการผลิต วัตถุดิบส่วนใหญ่เป็นเคมีภัณฑ์",8811,null,null,"จันทบุรี"]
[null,null,"ภัยที่มีการผลิต วัตถุดิบส่วนใหญ่เป็นน้ำมันแร่",8812,null,null,"ฉะเชิงเทรา"]
[null,null,null,null,null,null,"ชลบุรี"]
[null,null,null,null,null,null,"ชัยนาท"]
[null,null,null,null,null,null,"ชัยภูมิ"]
[null,null,null,null,null,null,"ชุมพร"]
[null,null,null,null,null,null,"เชียงใหม่"]
[null,null,null,null,null,null,"เชียงราย"]
[null,null,null,null,null,null,"ตรัง"]
[null,null,null,null,null,null,"ตราด"]
[null,null,null,null,null,null,"ตาก"]
[null,null,null,null,null,null,"นครนายก"]
[null,null,null,null,null,null,"นครปฐม"]
[null,null,null,null,null,null,"นครพนม"]
[null,null,null,null,null,null,"นครราชสีมา"]
[null,null,null,null,null,null,"นครศรีธรรมราช"]
[null,null,null,null,null,null,"นครสวรรค์"]
[null,null,null,null,null,null,"นนทบุรี"]
[null,null,null,null,null,null,"นราธิวาส"]
[null,null,null,null,null,null,"น่าน"]
[null,null,null,null,null,null,"บึงกาฬ"]
[null,null,null,null,null,null,"บุรีรัมย์"]
[null,null,null,null,null,null,"ปทุมธานี"]
[null,null,null,null,null,null,"ประจวบคีรีขันธ์"]
[null,null,null,null,null,null,"ปราจีนบุรี"]
[null,null,null,null,null,null,"ปัตตานี"]
[null,null,null,null,null,null,"พระนครศรีอยุธยา"]
[null,null,null,null,null,null,"พะเยา"]
[null,null,null,null,null,null,"พังงา"]
[null,null,null,null,null,null,"พัทลุง"]
[null,null,null,null,null,null,"พิจิตร"]
[null,null,null,null,null,null,"พิษณุโลก"]
[null,null,null,null,null,null,"เพชรบุรี"]
[null,null,null,null,null,null,"เพชรบูรณ์"]
[null,null,null,null,null,null,"แพร่"]
[null,null,null,null,null,null,"ภูเก็ต"]
[null,null,null,null,null,null,"มหาสารคาม"]
[null,null,null,null,null,null,"มุกดาหาร"]
[null,null,null,null,null,null,"แม่ฮ่องสอน"]
[null,null,null,null,null,null,"ยโสธร"]
[null,null,null,null,null,null,"ยะลา"]
[null,null,null,null,null,null,"ร้อยเอ็ด"]
[null,null,null,null,null,null,"ระนอง"]
[null,null,null,null,null,null,"ระยอง"]
[null,null,null,null,null,null,"ราชบุรี"]
[null,null,null,null,null,null,"ลพบุรี"]
[null,null,null,null,null,null,"ลำปาง"]
[null,null,null,null,null,null,"ลำพูน"]
[null,null,null,null,null,null,"เลย"]
[null,null,null,null,null,null,"ศรีสะเกษ"]
[null,null,null,null,null,null,"สกลนคร"]
[null,null,null,null,null,null,"สงขลา"]
[null,null,null,null,null,null,"สตูล"]
[null,null,null,null,null,null,"สมุทรปราการ"]
[null,null,null,null,null,null,"สมุทรสงคราม"]
[null,null,null,null,null,null,"สมุทรสาคร"]
[null,null,null,null,null,null,"สระแก้ว"]
[null,null,null,null,null,null,"สระบุรี"]
[null,null,null,null,null,null,"สิงห์บุรี"]
[null,null,null,null,null,null,"สุโขทัย"]
[null,null,null,null,null,null,"สุพรรณบุรี"]
[null,null,null,null,null,null,"สุราษฎร์ธานี"]
[null,null,null,null,null,null,"สุรินทร์"]
[null,null,null,null,null,null,"หนองคาย"]
[null,null,null,null,null,null,"หนองบัวลำภู"]
[null,null,null,null,null,null,"อ่างทอง"]
[null,null,null,null,null,null,"อำนาจเจริญ"]
[null,null,null,null,null,null,"อุดรธานี"]
[null,null,null,null,null,null,"อุตรดิตถ์"]
[null,null,null,null,null,null,"อุทัยธานี"]
[null,null,null,null,null,null,"อุบลราชธานี"]

{"sheet":"Profitability Level - FI","index":15,"n_rows":16,"n_cols":4,"rows_kept":16,"cut":false,"hidden":false,"merged":[[1,0,1,1],[1,2,2,2]]}
["เกณฑ์สภาพกำไรของประกันอัคคีภัยและความเสี่ยงภัยทรัพย์สิน"]
["Expected Combined Ratio ",null,"สภาพกำไร"]
["ตั้งแต่ (≤)","ถึง (<)"]
[0,{"$f":"A5","v":0.75},"Profitable with no significant risk to be onerous"]
[0.75,{"$f":"A6","v":1},"Remaining Profitable"]
[1,9.99,"Onerous"]
[]
[]
[]
[]
[]
[]
[]
[]
[]
[null,null,null," "]

{"sheet":"Group Summary - FI","index":16,"n_rows":6,"n_cols":16,"rows_kept":6,"cut":false,"hidden":false,"merged":[]}
[]
[]
[null,null,null,null,null,null,null,null,null,null,null,null,"Values"]
["กลุ่มสำหรับ IFRS17","ประเภทของการประกันภัย","กลุ่มของภัยตัวเอง","ชั้นของสิ่งปลูกสร้าง","ภัยโดดเดี่ยว","ภาคที่ตั้งทรัพย์สิน","ช่วงเวลาความคุ้มครอง","ระดับทุนประกันภัย","ความคุ้มครองภัยธรรมชาติ","ช่องทางการขาย","สภาพกำไร","ปีที่เริ่มรับรู้กรมธรรม์","จำนวนกรมธรรม์","เบี้ยรวม","Loss Ratio","Combined Ratio"]
["(blank)","(blank)","(blank)","(blank)","(blank)","(blank)","(blank)","(blank)","(blank)","(blank)","(blank)","(blank)",null,null,{"$error":"#DIV/0!"},{"$error":"#DIV/0!"}]
["Grand Total",null,null,null,null,null,null,null,null,null,null,null,null,null,{"$error":"#DIV/0!"},{"$error":"#DIV/0!"}]

{"sheet":"AH>>","index":17,"n_rows":0,"n_cols":0,"rows_kept":0,"cut":false,"hidden":false,"merged":[]}

{"sheet":"Policy Info - AH","index":18,"n_rows":3,"n_cols":20,"rows_kept":3,"cut":false,"hidden":false,"merged":[]}
[null,"รายการกรมธรรม์ประกันภัยอุบัติเหตุและสุขภาพ"]
["ปัจจัย","เลขที่กรมธรรม์","ประเภทของการประกันภัย","ประเภทผู้เอาประกันภัย","ช่วงอายุ","ประเภทความคุ้มครอง","ช่องทางการขาย","วันออกกรมธรรม์","วันกำหนดได้รับเบี้ย","วันเริ่มคุ้มครอง","วันที่ได้รับเบี้ยจริง","เบี้ยประกันภัย","ต้นทุนความเสียหาย","ค่าปรับปรุงความเสี่ยง","ค่านายหน้า","ค่าใช้จ่ายอื่น","สภาพกำไร","วันที่เริ่มรับรู้กรมธรรม์","ปีที่เริ่มรับรู้กรมธรรม์","กลุ่มสำหรับ IFRS17"]
["ใช้เป็นปัจจัยในการแบ่งกลุ่มหรือไม่","ไม่","ใช่","ใช่","ใช่","ใช่","ใช่","ไม่","ไม่","ไม่","ไม่","ไม่","ไม่","ไม่","ไม่","ไม่","ใช่","ไม่","ใช่","ไม่"]

{"sheet":"Keys - AH","index":19,"n_rows":10,"n_cols":6,"rows_kept":10,"cut":false,"hidden":false,"merged":[[0,0,0,3]]}
["รายการปัจจัยของกรมธรรม์ประกันภัยอุบัติเหตุและสุขภาพ"]
["ปัจจัย","ประเภทของการประกันภัย","ประเภทผู้เอาประกันภัย","ช่วงอายุ","ประเภทความคุ้มครอง","ช่องทางการขาย"]
["ใช้เป็นปัจจัยในการแบ่งกลุ่มหรือไม่","ใช่","ใช่","ใช่","ใช่","ใช่"]
["ตัวเลือกในแต่ละปัจจัย","ประกันภัยอุบัติเหตุ","บุคคล","0 - 10 ปี","PA","ตัวแทน"]
[null,"ประกันภัยการเดินทางต่างประเทศ","กลุ่ม","11 - 20 ปี","IPD","บริษัทนายหน้า A"]
[null,"ประกันภัยสุขภาพ",null,"21 - 30 ปี","IPD + OPD","บริษัทนายหน้า B"]
[null,null,null,"31 - 40 ปี","IPD + Dental","บริษัทนายหน้า C"]
[null,null,null,"41 - 50 ปี","IPD + OPD + Dental","ธนาคาร"]
[null,null,null,"51 - 60 ปี",null,"รับตรง"]
[null,null,null,"มากกว่า 60 ปี"]

{"sheet":"Profitability Level - AH","index":20,"n_rows":16,"n_cols":4,"rows_kept":16,"cut":false,"hidden":false,"merged":[[1,0,1,1],[1,2,2,2]]}
["เกณฑ์สภาพกำไรของประกันภัยประกันภัยอุบัติเหตุและสุขภาพ"]
["Expected Combined Ratio ",null,"สภาพกำไร"]
["ตั้งแต่ (≤)","ถึง (<)"]
[0,{"$f":"A5","v":0.9},"Profitable with no significant risk to be onerous"]
[0.9,{"$f":"A6","v":1},"Remaining Profitable"]
[1,9.99,"Onerous"]
[]
[]
[]
[]
[]
[]
[]
[]
[]
[null,null,null," "]

{"sheet":"Group Summary - AH","index":21,"n_rows":6,"n_cols":12,"rows_kept":6,"cut":false,"hidden":false,"merged":[]}
[]
[]
[null,null,null,null,null,null,null,null,"Values"]
["กลุ่มสำหรับ IFRS17","ประเภทของการประกันภัย","ประเภทผู้เอาประกันภัย","ช่วงอายุ","ประเภทความคุ้มครอง","ช่องทางการขาย","สภาพกำไร","ปีที่เริ่มรับรู้กรมธรรม์","จำนวนกรมธรรม์","เบี้ยรวม","Loss Ratio","Combined Ratio"]
["(blank)","(blank)","(blank)","(blank)","(blank)","(blank)","(blank)","(blank)",null,null,{"$error":"#DIV/0!"},{"$error":"#DIV/0!"}]
["Grand Total",null,null,null,null,null,null,null,null,null,{"$error":"#DIV/0!"},{"$error":"#DIV/0!"}]

{"sheet":"MR>>","index":22,"n_rows":0,"n_cols":0,"rows_kept":0,"cut":false,"hidden":false,"merged":[]}

{"sheet":"Policy Info - MR","index":23,"n_rows":3,"n_cols":17,"rows_kept":3,"cut":false,"hidden":false,"merged":[]}
[null,"รายการกรมธรรม์ประกันภัยทางทะเลและขนส่ง"]
["ปัจจัย","เลขที่กรมธรรม์","ประเภทของการประกันภัย","ช่องทางการขาย","วันออกกรมธรรม์","วันกำหนดได้รับเบี้ย","วันเริ่มคุ้มครอง","วันที่ได้รับเบี้ยจริง","เบี้ยประกันภัย","ต้นทุนความเสียหาย","ค่าปรับปรุงความเสี่ยง","ค่านายหน้า","ค่าใช้จ่ายอื่น","สภาพกำไร","วันที่เริ่มรับรู้กรมธรรม์","ปีที่เริ่มรับรู้กรมธรรม์","กลุ่มสำหรับ IFRS17"]
["ใช้เป็นปัจจัยในการแบ่งกลุ่มหรือไม่","ไม่","ใช่","ใช่","ไม่","ไม่","ไม่","ไม่","ไม่","ไม่","ไม่","ไม่","ไม่","ใช่","ไม่","ใช่","ไม่"]

{"sheet":"Keys - MR","index":24,"n_rows":9,"n_cols":3,"rows_kept":9,"cut":false,"hidden":false,"merged":[[0,0,0,3]]}
["รายการปัจจัยของกรมธรรม์ประกันภัยทะเลและขนส่ง"]
["ปัจจัย","ประเภทของการประกันภัย","ช่องทางการขาย"]
["ใช้เป็นปัจจัยในการแบ่งกลุ่มหรือไม่","ใช่","ใช่"]
["ตัวเลือกในแต่ละปัจจัย","ประกันภัยอุบัติเหตุ","ตัวแทน"]
[null,"ประกันภัยการเดินทางต่างประเทศ","บริษัทนายหน้า A"]
[null,"ประกันภัยสุขภาพ","บริษัทนายหน้า B"]
[null,null,"บริษัทนายหน้า C"]
[null,null,"ธนาคาร"]
[null,null,"รับตรง"]

{"sheet":"Profitability Level - MR","index":25,"n_rows":16,"n_cols":4,"rows_kept":16,"cut":false,"hidden":false,"merged":[[1,0,1,1],[1,2,2,2]]}
["เกณฑ์สภาพกำไรของประกันภัยประกันภัยทางทะเลและขนส่ง"]
["Expected Combined Ratio ",null,"สภาพกำไร"]
["ตั้งแต่ (≤)","ถึง (<)"]
[0,{"$f":"A5","v":0.8},"Profitable with no significant risk to be onerous"]
[0.8,{"$f":"A6","v":1},"Remaining Profitable"]
[1,9.99,"Onerous"]
[]
[]
[]
[]
[]
[]
[]
[]
[]
[null,null,null," "]

{"sheet":"Group Summary - MR","index":26,"n_rows":6,"n_cols":9,"rows_kept":6,"cut":false,"hidden":false,"merged":[]}
[]
[]
[null,null,null,null,null,"Values"]
["กลุ่มสำหรับ IFRS17","ประเภทของการประกันภัย","ช่องทางการขาย","สภาพกำไร","ปีที่เริ่มรับรู้กรมธรรม์","จำนวนกรมธรรม์","เบี้ยรวม","Loss Ratio","Combined Ratio"]
["(blank)","(blank)","(blank)","(blank)","(blank)",null,null,{"$error":"#DIV/0!"},{"$error":"#DIV/0!"}]
["Grand Total",null,null,null,null,null,null,{"$error":"#DIV/0!"},{"$error":"#DIV/0!"}]

{"sheet":"PL>>","index":27,"n_rows":0,"n_cols":0,"rows_kept":0,"cut":false,"hidden":false,"merged":[]}

{"sheet":"Policy Info - PL","index":28,"n_rows":3,"n_cols":18,"rows_kept":3,"cut":false,"hidden":false,"merged":[]}
[null,"รายการกรมธรรม์ประกันภัยความรับผิดต่อสาธารณะ"]
["ปัจจัย","เลขที่กรมธรรม์","ประเภทของการประกันภัย","ประเภทของการประกันภัยย่อย","ช่องทางการขาย","วันออกกรมธรรม์","วันกำหนดได้รับเบี้ย","วันเริ่มคุ้มครอง","วันที่ได้รับเบี้ยจริง","เบี้ยประกันภัย","ต้นทุนความเสียหาย","ค่าปรับปรุงความเสี่ยง","ค่านายหน้า","ค่าใช้จ่ายอื่น","สภาพกำไร","วันที่เริ่มรับรู้กรมธรรม์","ปีที่เริ่มรับรู้กรมธรรม์","กลุ่มสำหรับ IFRS17"]
["ใช้เป็นปัจจัยในการแบ่งกลุ่มหรือไม่","ไม่","ใช่","ไม่","ใช่","ไม่","ไม่","ไม่","ไม่","ไม่","ไม่","ไม่","ไม่","ไม่","ใช่","ไม่","ใช่","ไม่"]

{"sheet":"Keys - PL","index":29,"n_rows":15,"n_cols":4,"rows_kept":15,"cut":false,"hidden":false,"merged":[[0,0,0,4]]}
["รายการปัจจัยของกรมธรรม์ประกันภัยความรับผิดต่อสาธารณะ"]
["ปัจจัย","ประเภทของการประกันภัย","ประเภทของการประกันภัยย่อย","ช่องทางการขาย"]
["ใช้เป็นปัจจัยในการแบ่งกลุ่มหรือไม่","ใช่","ไม่","ใช่"]
["ตัวเลือกในแต่ละปัจจัย","ประกันภัยความรับผิดต่อสาธารณชนส่วนบุคคล","ความรับผิดของแพทย์ ศัลยแพทย์ และทันตแพทย์","ตัวแทน"]
[null,"ประกันภัยความรับผิดต่อสาธารณชน ของผู้ประกอบการหรือนิติบุคคล","ความรับผิดของเภสัชกร","บริษัทนายหน้า A"]
[null,null,"ความรับผิดของโรงพยาบาล","บริษัทนายหน้า B"]
[null,null,"ความรับผิดของจักษุแพทย์","บริษัทนายหน้า C"]
[null,null,"ความรับผิดของร้านเสริมสวย","ธนาคาร"]
[null,null,"ความรับผิดของผู้ทำบัญชีและผู้สอบบัญชี","รับตรง"]
[null,null,"ความรับผิดของเจ้าของ ผู้ให้เช่า และ ผู้เช่าสถานที่"]
[null,null,"ความรับผิดของผู้ทำการผลิตและผู้รับเหมา"]
[null,null,"ความรับผิดต่อผลิตภัณฑ์"]
[null,null,"ความรับผิดของนายจ้างต่อลูกจ้าง"]
[null,null,"ความรับผิดตามสัญญา"]
[null,null,"ความรับผิดอย่างกว้างขวางของผู้ประกอบธุรกิจ"]

{"sheet":"Profitability Level - PL","index":30,"n_rows":16,"n_cols":4,"rows_kept":16,"cut":false,"hidden":false,"merged":[[1,0,1,1],[1,2,2,2]]}
["เกณฑ์สภาพกำไรของประกันภัยความรับผิดต่อสาธารณะ"]
["Expected Combined Ratio ",null,"สภาพกำไร"]
["ตั้งแต่ (≤)","ถึง (<)"]
[0,{"$f":"A5","v":0.8},"Profitable with no significant risk to be onerous"]
[0.8,{"$f":"A6","v":1},"Remaining Profitable"]
[1,9.99,"Onerous"]
[]
[]
[]
[]
[]
[]
[]
[]
[]
[null,null,null," "]

{"sheet":"Group Summary - PL","index":31,"n_rows":6,"n_cols":9,"rows_kept":6,"cut":false,"hidden":false,"merged":[]}
[]
[]
[null,null,null,null,null,"Values"]
["กลุ่มสำหรับ IFRS17","ประเภทของการประกันภัย","ช่องทางการขาย","สภาพกำไร","ปีที่เริ่มรับรู้กรมธรรม์","จำนวนกรมธรรม์","เบี้ยรวม","Loss Ratio","Combined Ratio"]
["(blank)","(blank)","(blank)","(blank)","(blank)",null,null,{"$error":"#DIV/0!"},{"$error":"#DIV/0!"}]
["Grand Total",null,null,null,null,null,null,{"$error":"#DIV/0!"},{"$error":"#DIV/0!"}]

{"sheet":"EN>>","index":32,"n_rows":0,"n_cols":0,"rows_kept":0,"cut":false,"hidden":false,"merged":[]}

{"sheet":"Policy Info - EN","index":33,"n_rows":3,"n_cols":18,"rows_kept":3,"cut":false,"hidden":false,"merged":[]}
[null,"รายการกรมธรรม์ประกันภัยสำหรับวิศวกรรม"]
["ปัจจัย","เลขที่กรมธรรม์","ประเภทของการประกันภัย","ประเภทของการประกันภัยย่อย","ช่องทางการขาย","วันออกกรมธรรม์","วันกำหนดได้รับเบี้ย","วันเริ่มคุ้มครอง","วันที่ได้รับเบี้ยจริง","เบี้ยประกันภัย","ต้นทุนความเสียหาย","ค่าปรับปรุงความเสี่ยง","ค่านายหน้า","ค่าใช้จ่ายอื่น","สภาพกำไร","วันที่เริ่มรับรู้กรมธรรม์","ปีที่เริ่มรับรู้กรมธรรม์","กลุ่มสำหรับ IFRS17"]
["ใช้เป็นปัจจัยในการแบ่งกลุ่มหรือไม่","ไม่","ใช่","ใช่","ใช่","ไม่","ไม่","ไม่","ไม่","ไม่","ไม่","ไม่","ไม่","ไม่","ใช่","ไม่","ใช่","ไม่"]

{"sheet":"Keys - EN","index":34,"n_rows":9,"n_cols":4,"rows_kept":9,"cut":false,"hidden":false,"merged":[[0,0,0,4]]}
["รายการปัจจัยของกรมธรรม์ประกันภัยสำหรับวิศวกรรม"]
["ปัจจัย","ประเภทของการประกันภัย","ประเภทของการประกันภัยย่อย","ช่องทางการขาย"]
["ใช้เป็นปัจจัยในการแบ่งกลุ่มหรือไม่","ใช่","ใช่","ใช่"]
["ตัวเลือกในแต่ละปัจจัย","ประกันภัยสำหรับวิศวกรรม","ประกันภัยการปฏิบัติงานตามสัญญา","ตัวแทน"]
[null,null,"ประกันภัยเครื่องอุปกรณ์อิเล็กทรอนิกส์","บริษัทนายหน้า A"]
[null,null,"ประกันภัยเครื่องจักร","บริษัทนายหน้า B"]
[null,null,"ประกันภัยคุ้มครองเครื่องมือก่อสร้าง","บริษัทนายหน้า C"]
[null,null,null,"ธนาคาร"]
[null,null,null,"รับตรง"]

{"sheet":"Profitability Level - EN","index":35,"n_rows":16,"n_cols":4,"rows_kept":16,"cut":false,"hidden":false,"merged":[[1,0,1,1],[1,2,2,2]]}
["เกณฑ์สภาพกำไรของประกันภัยสำหรับวิศวกรรม"]
["Expected Combined Ratio ",null,"สภาพกำไร"]
["ตั้งแต่ (≤)","ถึง (<)"]
[0,{"$f":"A5","v":0.8},"Profitable with no significant risk to be onerous"]
[0.8,{"$f":"A6","v":1},"Remaining Profitable"]
[1,9.99,"Onerous"]
[]
[]
[]
[]
[]
[]
[]
[]
[]
[null,null,null," "]

{"sheet":"Group Summary - EN","index":36,"n_rows":6,"n_cols":10,"rows_kept":6,"cut":false,"hidden":false,"merged":[]}
[]
[]
[null,null,null,null,null,null,"Values"]
["กลุ่มสำหรับ IFRS17","ประเภทของการประกันภัย","ประเภทของการประกันภัยย่อย","ช่องทางการขาย","สภาพกำไร","ปีที่เริ่มรับรู้กรมธรรม์","จำนวนกรมธรรม์","เบี้ยรวม","Loss Ratio","Combined Ratio"]
["(blank)","(blank)","(blank)","(blank)","(blank)","(blank)",null,null,{"$error":"#DIV/0!"},{"$error":"#DIV/0!"}]
["Grand Total",null,null,null,null,null,null,null,{"$error":"#DIV/0!"},{"$error":"#DIV/0!"}]

{"sheet":"MI>>","index":37,"n_rows":0,"n_cols":0,"rows_kept":0,"cut":false,"hidden":false,"merged":[]}

{"sheet":"Policy Info - MI","index":38,"n_rows":3,"n_cols":17,"rows_kept":3,"cut":false,"hidden":false,"merged":[]}
[null,"รายการกรมธรรม์ประกันภัยเบ็ดเตล็ด"]
["ปัจจัย","เลขที่กรมธรรม์","ประเภทของการประกันภัย","ช่องทางการขาย","วันออกกรมธรรม์","วันกำหนดได้รับเบี้ย","วันเริ่มคุ้มครอง","วันที่ได้รับเบี้ยจริง","เบี้ยประกันภัย","ต้นทุนความเสียหาย","ค่าปรับปรุงความเสี่ยง","ค่านายหน้า","ค่าใช้จ่ายอื่น","สภาพกำไร","วันที่เริ่มรับรู้กรมธรรม์","ปีที่เริ่มรับรู้กรมธรรม์","กลุ่มสำหรับ IFRS17"]
["ใช้เป็นปัจจัยในการแบ่งกลุ่มหรือไม่","ไม่","ใช่","ใช่","ไม่","ไม่","ไม่","ไม่","ไม่","ไม่","ไม่","ไม่","ไม่","ใช่","ไม่","ใช่","ไม่"]

{"sheet":"Keys - MI","index":39,"n_rows":9,"n_cols":3,"rows_kept":9,"cut":false,"hidden":false,"merged":[[0,0,0,3]]}
["รายการปัจจัยของกรมธรรม์ประกันภัยเบ็ดเตล็ด"]
["ปัจจัย","ประเภทของการประกันภัย","ช่องทางการขาย"]
["ใช้เป็นปัจจัยในการแบ่งกลุ่มหรือไม่","ใช่","ใช่"]
["ตัวเลือกในแต่ละปัจจัย","ประกันภัยอิสรภาพ","ตัวแทน"]
[null,"ประกันภัยโจรกรรม","บริษัทนายหน้า A"]
[null,null,"บริษัทนายหน้า B"]
[null,null,"บริษัทนายหน้า C"]
[null,null,"ธนาคาร"]
[null,null,"รับตรง"]

{"sheet":"Profitability Level - MI","index":40,"n_rows":16,"n_cols":4,"rows_kept":16,"cut":false,"hidden":false,"merged":[[1,0,1,1],[1,2,2,2]]}
["เกณฑ์สภาพกำไรของประกันภัยเบ็ดเตล็ด"]
["Expected Combined Ratio ",null,"สภาพกำไร"]
["ตั้งแต่ (≤)","ถึง (<)"]
[0,{"$f":"A5","v":0.8},"Profitable with no significant risk to be onerous"]
[0.8,{"$f":"A6","v":1},"Remaining Profitable"]
[1,9.99,"Onerous"]
[]
[]
[]
[]
[]
[]
[]
[]
[]
[null,null,null," "]

{"sheet":"Group Summary - MI","index":41,"n_rows":6,"n_cols":9,"rows_kept":6,"cut":false,"hidden":false,"merged":[]}
[]
[]
[null,null,null,null,null,"Values"]
["กลุ่มสำหรับ IFRS17","ประเภทของการประกันภัย","ช่องทางการขาย","สภาพกำไร","ปีที่เริ่มรับรู้กรมธรรม์","จำนวนกรมธรรม์","เบี้ยรวม","Loss Ratio","Combined Ratio"]
["(blank)","(blank)","(blank)","(blank)","(blank)",null,null,{"$error":"#DIV/0!"},{"$error":"#DIV/0!"}]
["Grand Total",null,null,null,null,null,null,{"$error":"#DIV/0!"},{"$error":"#DIV/0!"}]

{"sheet":"Template>>","index":42,"n_rows":0,"n_cols":0,"rows_kept":0,"cut":false,"hidden":true,"merged":[]}

{"sheet":"Policy Info Template","index":43,"n_rows":3,"n_cols":15,"rows_kept":3,"cut":false,"hidden":true,"merged":[]}
[null,"รายการกรมธรรม์ประกันภัย"]
["ปัจจัย","เลขที่กรมธรรม์","วันออกกรมธรรม์","วันกำหนดได้รับเบี้ย","วันเริ่มคุ้มครอง","วันที่ได้รับเบี้ยจริง","เบี้ยประกันภัย","ต้นทุนความเสียหาย","ค่าปรับปรุงความเสี่ยง","ค่านายหน้า","ค่าใช้จ่ายอื่น","สภาพกำไร","วันที่เริ่มรับรู้กรมธรรม์","ปีที่เริ่มรับรู้กรมธรรม์","กลุ่มสำหรับ IFRS17"]
["ใช้เป็นปัจจัยในการแบ่งกลุ่มหรือไม่","ไม่","ไม่","ไม่","ไม่","ไม่","ไม่","ไม่","ไม่","ไม่","ไม่","ใช่","ไม่","ใช่","ไม่"]

{"sheet":"Keys Template","index":44,"n_rows":4,"n_cols":1,"rows_kept":4,"cut":false,"hidden":true,"merged":[[0,0,0,3]]}
["รายการปัจจัยของกรมธรรม์ประกันภัย"]
["ปัจจัย"]
["ใช้เป็นปัจจัยในการแบ่งกลุ่มหรือไม่"]
["ตัวเลือกในแต่ละปัจจัย"]

{"sheet":"Profitability Level Template","index":45,"n_rows":6,"n_cols":3,"rows_kept":6,"cut":false,"hidden":true,"merged":[[1,0,1,1],[1,2,2,2]]}
["เกณฑ์สภาพกำไร"]
["Combined Ratio ",null,"สภาพกำไร"]
["ตั้งแต่","ถึง"]
[0,{"$f":"A5","v":0.9},"Profitable with no significant risk to be onerous"]
[0.9,{"$f":"A6","v":1},"Remaining Profitable"]
[1,9.99,"Onerous"]

{"sheet":"Current Path","index":46,"n_rows":1,"n_cols":1,"rows_kept":1,"cut":false,"hidden":true,"merged":[]}
["G:\\My Drive\\Actuary\\IFRS17 - Insurance Contract Liability\\IPRB Training Materials\\1. Product Grouping"]